{"text_format":"1","workbook":"xlsx","n_sheets":2,"sheets":["Выгрузка","Тематики"],"not_rendered":{"charts":0,"images":0,"macros":1,"external_links":0,"defined_names":0,"comments":0,"pivot_tables":0},"unopened":[],"bounds":{"document_bytes":16777216,"sheet_cells":100000,"rows_first":2000,"rows_last":500,"rows_between":2000,"halvings":0,"cell_chars":16384,"cell_head_chars":4096},"cells_cut":0,"cells_raw":0,"read":"whole","date_system":"1900"}

{"sheet":"Выгрузка","index":0,"n_rows":371,"n_cols":2,"rows_kept":371,"cut":false,"hidden":false,"merged":[]}
["Цель","Оператор"]
[null,1]
["ДС - Расписание",1]
["ДС - Маршруты",1]
["ПС - Расписание",1]
["ДС - Стоимость проезда",1]
["Перевод вызова–Эксперт",1]
["ПС - Расписание",1]
["ДС - Расписание",1]
["ДС - Наличие мест",1]
["Правила. Иные",1]
["ДС - Стоимость проезда",1]
["ДС - Наличие мест",1]
["Перевод вызова–Эксперт",1]
["ДС - Наличие мест",1]
["Другое",1]
["ПС - Расписание",1]
["ДС - Расписание",1]
["ПС - Расписание",1]
["ДС - Наличие мест",1]
["ДС - Расписание",1]
["ПС - Расписание",1]
["ДС - Расписание",1]
["Льготный проезд",1]
["ДС - Расписание",1]
["ДС - Наличие мест",1]
["ДС - Наличие мест",1]
["ДС - Расписание",1]
["ДС - Наличие мест",1]
["Перевод вызова–Эксперт",1]
["ДС - Наличие мест",1]
["Правила приобретения билетов",1]
["ДС - Наличие мест",1]
["ДС - Расписание",1]
["ДС - Расписание",1]
["ПС - Расписание",1]
["ДС - Наличие мест",1]
["ДС - Расписание",1]
["ПС - Расписание",1]
["ПС - Расписание",1]
["ДС - Наличие мест",1]
["ПС - Расписание",1]
["ДС - Расписание",1]
["ДС - Расписание",1]
["Информация регионального значе",1]
["Правила приобретения билетов",1]
["ДС - Расписание",1]
["ДС - Расписание",1]
["Правила приобретения билетов",1]
["Правила. Иные",1]
[null,1]
["Перевод вызова–УФС",1]
["ПС - Расписание",1]
[null,1]
["Перевод вызова–Эксперт",1]
["Продажа билетов УФС",1]
["Правила. Иные",1]
["ДС - Наличие мест",1]
["ДС - Наличие мест",1]
["ДС - Расписание",1]
["Возврат билетов",1]
["ПС - Расписание",1]
["ДС - Наличие мест",1]
["ПС - Расписание",1]
["ДС - Наличие мест",1]
[null,1]
["Льготный проезд",1]
["ПС - Расписание",1]
["Перевод вызова–Эксперт",1]
["ДС - Стоимость проезда",1]
["Проезд с пересадками",1]
["Другое",1]
["ДС - Наличие мест",1]
["ДС - Наличие мест",1]
["Правила. Иные",1]
["ДС - Наличие мест",1]
["ПС - Расписание",1]
["Правила приобретения билетов",1]
["ПС - Расписание",1]
["ДС - Наличие мест",1]
[null,1]
["ДС - Наличие мест",1]
["ПС - Расписание",1]
["ДС - Стоимость перевоз. багажа",1]
["Правила перевозки ручной клади",1]
["ДС - Расписание",1]
["Инфор-я,не входящая в ЕИСЦ",1]
["ДС - Наличие мест",1]
["ПС - Расписание",1]
["ДС - Стоимость проезда",1]
["ДС - Расписание",1]
["ПС - Расписание",1]
["ДС - Наличие мест",1]
["ПС - Расписание",1]
["ДС - Расписание",1]
["ДС - Расписание",1]
["ПС - Расписание",1]
["ДС - Наличие мест",1]
[null,1]
["ДС - Стоимость проезда",1]
[null,1]
["Проезд с пересадками",1]
["ДС - Правила",1]
["ПС - Расписание",1]
["Другое",1]
["ДС - Расписание",1]
["ДС - Наличие мест",1]
["Продажа билетов УФС",1]
["Возврат билетов",1]
["ДС - Наличие мест",1]
["ДС - Маршруты",1]
["ДС - Наличие мест",1]
["Правила. Иные",1]
[null,1]
["ПС - Стоимость проезда",1]
["Информация регионального значе",1]
["Правила. Иные",1]
["ПС - Расписание",1]
["ДС - Стоимость проезда",1]
["ПС - Расписание",1]
["ДС - Наличие мест",1]
["ПС - Расписание",1]
["Другое",1]
["Информация регионального значе",1]
["ПС - Расписание",1]
["Другое",1]
["ПС - Расписание",1]
["ПС - Расписание",1]
["ДС - Расписание",1]
["ПС - Расписание",1]
["ПС - Расписание",1]
["ДС - Расписание",1]
["Возврат билетов",1]
["Другое",1]
["ДС - Наличие мест",1]
["ДС - Наличие мест",1]
["Льготный проезд",1]
["Продажа билетов УФС",1]
["ПС - Расписание",1]
["ДС",1]
["ПС - Расписание",1]
["ПС - Расписание",1]
["Другое",1]
["ПС - Расписание",1]
["ПС - Расписание",1]
["ДС - Наличие мест",1]
["Правила приобретения билетов",1]
["Возврат билетов",1]
["ДС - Наличие мест",1]
["ПС - Расписание",1]
["ПС",1]
["Перевод вызова–Эксперт",1]
["ПС - Расписание",1]
["ПС - Расписание",1]
["ДС - Наличие мест",1]
["ДС - Наличие мест",1]
["ДС - Расписание",1]
["ПС - Расписание",1]
["Перевод вызова–Эксперт",1]
["ДС - Наличие мест",1]
["ПС - Расписание",1]
["ДС - Наличие мест",1]
[null,1]
["ПС - Расписание",1]
["ДС - Наличие мест",1]
["ДС - Расписание",1]
["ДС - Расписание",1]
["ДС - Наличие мест",1]
["ДС - Расписание",1]
["ДС - Наличие мест",1]
["ДС - Наличие мест",1]
["ДС - Маршруты",1]
["ПС - Расписание",1]
["ПС - Расписание",1]
["ПС - Расписание",1]
["ДС - Расписание",1]
["Возврат билетов",1]
["Перевод вызова–УФС",1]
["Продажа билетов УФС",1]
["ДС - Расписание",1]
["ПС - Расписание",1]
["ДС - Расписание",1]
["Правила. Иные",1]
["ДС - Наличие мест",1]
["Правила перевозки ручной клади",1]
["ПС - Расписание",1]
["Перевод вызова–Эксперт",1]
["Возврат билетов",1]
["ПС - Расписание",1]
["ДС - Наличие мест",1]
["ПС - Расписание",1]
["ПС - Стоимость проезда",1]
["ДС - Расписание",1]
["Возврат билетов",1]
["ДС - Наличие мест",1]
["Правила. Иные",1]
["ПС - Расписание",1]
["Правила. Иные",1]
["ДС - Наличие мест",1]
["ПС - Расписание",1]
["Статус оплаты билета УФС в IVR",1]
["ДС - Наличие мест",1]
["ДС - Расписание",1]
["ПС - Расписание",1]
["ПС - Расписание",1]
["ПС - Расписание",1]
["ДС - Расписание",1]
["ДС - Расписание",1]
["ДС - Расписание",1]
["Проезд с пересадками",1]
["Перевод вызова–УФС",1]
["ДС - Расписание",1]
["ДС - Наличие мест",1]
["ДС - Наличие мест",1]
["ДС - Наличие мест",1]
["Другое",1]
["ДС - Расписание",1]
[null,1]
[null,1]
[null,1]
[null,1]
[null,1]
[null,1]
[null,1]
[null,1]
[null,1]
[null,1]
[null,1]
[null,1]
[null,1]
[null,1]
[null,1]
[null,1]
[null,1]
[null,1]
[null,1]
[null,1]
[null,1]
[null,1]
[null,1]
[null,1]
[null,1]
[null,1]
[null,1]
[null,1]
[null,1]
[null,1]
[null,1]
[null,1]
[null,1]
[null,1]
[null,1]
[null,1]
[null,1]
[null,1]
[null,1]
[null,1]
[null,1]
[null,1]
[null,1]
[null,1]
[null,1]
[null,1]
[null,1]
[null,1]
[null,1]
[null,1]
[null,1]
[null,1]
[null,1]
[null,1]
[null,1]
[null,1]
[null,1]
[null,1]
[null,1]
[null,1]
[null,1]
[null,1]
[null,1]
[null,1]
[null,1]
[null,1]
[null,1]
[null,1]
[null,1]
[null,1]
[null,1]
[null,1]
[null,1]
[null,1]
[null,1]
[null,1]
[null,1]
[null,1]
[null,1]
[null,1]
[null,1]
[null,1]
[null,1]
[null,1]
[null,1]
[null,1]
[null,1]
[null,1]
[null,1]
[null,1]
[null,1]
[null,1]
[null,1]
[null,1]
[null,1]
[null,1]
[null,1]
[null,1]
[null,1]
[null,1]
[null,1]
[null,1]
[null,1]
[null,1]
[null,1]
[null,1]
[null,1]
[null,1]
[null,1]
[null,1]
[null,1]
[null,1]
[null,1]
[null,1]
[null,1]
[null,1]
[null,1]
[null,1]
[null,1]
[null,1]
[null,1]
[null,1]
[null,1]
[null,1]
[null,1]
[null,1]
[null,1]
[null,1]
[null,1]
[null,1]
[null,1]
[null,1]
[null,1]
[null,1]
[null,1]
[null,1]
[null,1]
[null,1]
[null,1]
[null,1]
[null,1]
[null,1]
[null,1]
[null,1]
[null,1]
[null,1]
[null,1]
[null,1]
[null,1]
[null,1]
[null,1]
[null,1]
[null,1]
[null,1]

{"sheet":"Тематики","index":1,"n_rows":44,"n_cols":3,"rows_kept":44,"cut":false,"hidden":false,"merged":[]}
["Тематика","Ростов","10.02.2014 0:00:54"]
["Акции",{"$f":"SUMIF(Выгрузка!A:A,A2,Выгрузка!B:B)","v":0}]
["Военные",{"$f":"SUMIF(Выгрузка!A:A,A3,Выгрузка!B:B)","v":0}]
["Возврат билетов",{"$f":"SUMIF(Выгрузка!A:A,A4,Выгрузка!B:B)","v":7}]
["Вокзалы",{"$f":"SUMIF(Выгрузка!A:A,A5,Выгрузка!B:B)","v":0}]
["Другие правила",{"$f":"SUMIF(Выгрузка!A:A,A6,Выгрузка!B:B)","v":0}]
["Другое",{"$f":"SUMIF(Выгрузка!A:A,A7,Выгрузка!B:B)","v":8}]
["ДС",{"$f":"SUMIF(Выгрузка!A:A,A8,Выгрузка!B:B)","v":1}]
["ДС - Маршруты",{"$f":"SUMIF(Выгрузка!A:A,A9,Выгрузка!B:B)","v":3}]
["ДС - Назнач. и отмена поездов",{"$f":"SUMIF(Выгрузка!A:A,A10,Выгрузка!B:B)","v":0}]
["ДС - Наличие мест",{"$f":"SUMIF(Выгрузка!A:A,A11,Выгрузка!B:B)","v":47}]
["ДС - Перечень поездов",{"$f":"SUMIF(Выгрузка!A:A,A12,Выгрузка!B:B)","v":0}]
["ДС - Поезда с VIP вагонами",{"$f":"SUMIF(Выгрузка!A:A,A13,Выгрузка!B:B)","v":0}]
["ДС - Правила",{"$f":"SUMIF(Выгрузка!A:A,A14,Выгрузка!B:B)","v":1}]
["ДС - Поезда с вагонами для инв",{"$f":"SUMIF(Выгрузка!A:A,A15,Выгрузка!B:B)","v":0}]
["ДС - Расписание",{"$f":"SUMIF(Выгрузка!A:A,A16,Выгрузка!B:B)","v":36}]
["ДС - Стоимость перевоз. багажа",{"$f":"SUMIF(Выгрузка!A:A,A17,Выгрузка!B:B)","v":1}]
["ДС - Стоимость проезда",{"$f":"SUMIF(Выгрузка!A:A,A18,Выгрузка!B:B)","v":6}]
["ДС - Фактическое движение",{"$f":"SUMIF(Выгрузка!A:A,A19,Выгрузка!B:B)","v":0}]
["Информация регионального значе",{"$f":"SUMIF(Выгрузка!A:A,A20,Выгрузка!B:B)","v":3}]
["Инфор-я,не входящая в ЕИСЦ",{"$f":"SUMIF(Выгрузка!A:A,A21,Выгрузка!B:B)","v":1}]
["Льготный проезд",{"$f":"SUMIF(Выгрузка!A:A,A22,Выгрузка!B:B)","v":3}]
["Международное сообщение",{"$f":"SUMIF(Выгрузка!A:A,A23,Выгрузка!B:B)","v":0}]
["МС - Наличие мест/Стоимость",{"$f":"SUMIF(Выгрузка!A:A,A24,Выгрузка!B:B)","v":0}]
["МС - Расписание",{"$f":"SUMIF(Выгрузка!A:A,A25,Выгрузка!B:B)","v":0}]
["Обращение",{"$f":"SUMIF(Выгрузка!A:A,A26,Выгрузка!B:B)","v":0}]
["Оперативная информация",{"$f":"SUMIF(Выгрузка!A:A,A27,Выгрузка!B:B)","v":0}]
["Правила перевозки животных",{"$f":"SUMIF(Выгрузка!A:A,A28,Выгрузка!B:B)","v":0}]
["Правила перевозки ручной клади",{"$f":"SUMIF(Выгрузка!A:A,A29,Выгрузка!B:B)","v":2}]
["Правила приобретения билетов",{"$f":"SUMIF(Выгрузка!A:A,A30,Выгрузка!B:B)","v":5}]
["Правила проезда детей",{"$f":"SUMIF(Выгрузка!A:A,A31,Выгрузка!B:B)","v":0}]
["Правила. Восстановление билето",{"$f":"SUMIF(Выгрузка!A:A,A32,Выгрузка!B:B)","v":0}]
["Правила. Групповые заявки",{"$f":"SUMIF(Выгрузка!A:A,A33,Выгрузка!B:B)","v":0}]
["Правила. Иные",{"$f":"SUMIF(Выгрузка!A:A,A34,Выгрузка!B:B)","v":9}]
["Проезд с пересадками",{"$f":"SUMIF(Выгрузка!A:A,A35,Выгрузка!B:B)","v":3}]
["ПС",{"$f":"SUMIF(Выгрузка!A:A,A36,Выгрузка!B:B)","v":1}]
["ПС - Маршруты следования",{"$f":"SUMIF(Выгрузка!A:A,A37,Выгрузка!B:B)","v":0}]
["ПС - Правила",{"$f":"SUMIF(Выгрузка!A:A,A38,Выгрузка!B:B)","v":0}]
["ПС - Расписание",{"$f":"SUMIF(Выгрузка!A:A,A39,Выгрузка!B:B)","v":52}]
["ПС - Стоимость проезда",{"$f":"SUMIF(Выгрузка!A:A,A40,Выгрузка!B:B)","v":2}]
["Сапсан",{"$f":"SUMIF(Выгрузка!A:A,A41,Выгрузка!B:B)","v":0}]
["Справочные телефоны РЖД",{"$f":"SUMIF(Выгрузка!A:A,A42,Выгрузка!B:B)","v":0}]
["Электронная регистрация",{"$f":"SUMIF(Выгрузка!A:A,A43,Выгрузка!B:B)","v":0}]
["ИТОГ:",{"$f":"SUM(B2:B43)","v":191}]